fUST/lending_fUST_20240119
["ID","MTS","AMOUNT","RATE_DAILY","PERIOD"]
[312070890,1705596647430,-500.0,0.00041095,30]
[312070892,1705596647442,-500.98960001,0.00041095,30]
[312070894,1705596647454,-500.0,0.00041095,30]
[312070896,1705596647464,-226.24686039,0.00041095,30]
[312070898,1705596647474,-500.0,0.00041095,30]
[312070900,1705596647486,-502.68442693,0.00041095,30]
[312070902,1705596647497,-2561.23,0.00041095,30]
[312070903,1705596647508,-2222.66,0.00041095,30]
[312070905,1705596647524,-500.0,0.00041095,7]
[312070907,1705596647535,-500.0,0.00041095,30]
[312070914,1705596647608,-500.0,0.00041095,30]
[312070915,1705596647620,-476.08612936,0.00041095,30]
[312070917,1705596647632,-539.53667564,0.00041095,30]
[312070919,1705596647643,-503.74146574,0.00041095,30]
[312070921,1705596647660,-500.0,0.00041095,30]
[312070923,1705596647671,-500.0,0.00041095,30]
[312070925,1705596647682,-526.09517294,0.00041095,30]
[312070927,1705596647694,-500.0,0.00041095,30]
[312070928,1705596647705,-500.64672616,0.00041095,30]
[312070930,1705596647716,-500.0,0.00041095,30]
[312070932,1705596647726,-500.0,0.00041095,30]
[312070934,1705596647737,-1199.28,0.00041095,30]
[312070936,1705596647748,-500.0,0.00041095,30]
[312070937,1705596647759,-500.0,0.00041095,30]
[312070939,1705596647769,-500.0,0.00041095,30]
[312070941,1705596647780,-504.7551472,0.00041095,30]
[312070943,1705596647791,-500.0,0.00041095,30]
[312070945,1705596647801,-500.62077574,0.00041095,30]
[312070946,1705596647812,-522.70298459,0.00041095,30]
[312070948,1705596647823,-514.16711295,0.00041095,30]
[312070950,1705596647833,-500.0,0.00041095,30]
[312070952,1705596647843,-1915.51,0.00041095,30]
[312070954,1705596647854,-500.0,0.00041095,30]
[312070955,1705596647865,-500.0,0.00041095,30]
[312070957,1705596647876,-504.38773086,0.00041095,30]
[312070959,1705596647887,-500.0,0.00041095,30]
[312070961,1705596647897,-584.52617011,0.00041095,30]
[312070963,1705596647914,-500.0,0.00041095,30]
[312070965,1705596647925,-500.0,0.00041095,30]
[312070967,1705596647935,-202.96825534,0.00041095,30]
[312070968,1705596647945,-500.0,0.00041095,30]
[312070970,1705596647956,-500.0,0.00041095,30]
[312070972,1705596647967,-503.92123215,0.00041095,30]
[312070974,1705596647976,-500.0,0.00041095,30]
[312070976,1705596647987,-500.0,0.00041095,30]
[312070978,1705596647997,-2158.55,0.00041095,30]
[312070980,1705596648006,-531.75097436,0.00041095,30]
[312070981,1705596648015,-2158.55,0.00041095,30]
[312070983,1705596648026,-2158.55,0.00041095,30]
[312070985,1705596648036,-500.0,0.00041095,30]
[312070987,1705596648046,-2158.55,0.00041095,30]
[312070989,1705596648056,-2158.55,0.00041095,30]
[312070991,1705596648069,-2158.55,0.00041095,30]
[312070992,1705596648079,-2158.55,0.00041095,30]
[312070994,1705596648089,-263.72030649,0.00041095,30]
[312070996,1705596648102,-2158.55,0.00041095,30]
[312070998,1705596648111,-2158.55,0.00041095,30]
[312071000,1705596648120,-2158.55,0.00041095,30]
[312071001,1705596648129,-2158.55,0.00041095,30]
[312071003,1705596648139,-2158.55,0.00041095,30]
[312071005,1705596648151,-500.0,0.00041095,30]
[312071007,1705596648162,-2158.55,0.00041095,30]
[312071009,1705596648172,-4046.67,0.00041095,30]
[312071010,1705596648182,-2158.55,0.00041095,30]
[312071012,1705596648193,-2158.55,0.00041095,30]
[312071014,1705596648202,-2158.55,0.00041095,30]
[312071016,1705596648213,-2158.55,0.00041095,30]
[312071018,1705596648223,-2158.55,0.00041095,30]
[312071020,1705596648233,-2158.55,0.00041095,30]
[312071021,1705596648243,-2158.55,0.00041095,30]
[312071023,1705596648253,-2158.55,0.00041095,30]
[312071025,1705596648264,-2158.55,0.00041095,30]
[312071027,1705596648274,-2158.55,0.00041095,30]
[312071029,1705596648283,-2158.75,0.00041095,30]
[312071031,1705596648295,-883.17,0.00041095,30]
[312071033,1705596648306,-500.0,0.00041095,30]
[312071034,1705596648316,-501.81380151,0.00041095,30]
[312071036,1705596648325,-502.4817696,0.00041095,30]
[312071038,1705596648337,-500.0,0.00041095,30]
[312071040,1705596648346,-22661.52,0.00041095,14]
[312071042,1705596648356,-500.0,0.00041095,30]
[312071043,1705596648365,-1132.55,0.00041095,30]
[312071045,1705596648375,-500.0,0.00041095,30]
[312071047,1705596648385,-500.0,0.00041095,30]
[312071049,1705596648395,-500.0,0.00041095,30]
[312071051,1705596648412,-500.0,0.00041095,30]
[312071053,1705596648422,-500.0,0.00041095,30]
[312071054,1705596648432,-500.0,0.00041095,30]
[312071056,1705596648443,-500.0,0.00041095,30]
[312071058,1705596648452,-500.0,0.00041095,30]
[312071060,1705596648462,-500.0,0.00041095,30]
[312071062,1705596648472,-4679.2,0.00041095,30]
[312071064,1705596648481,-500.0,0.00041095,30]
[312071065,1705596648491,-500.0,0.00041095,30]
[312071067,1705596648501,-500.0,0.00041095,30]
[312071069,1705596648514,-502.02270578,0.00041095,30]
[312071071,1705596648525,-500.0,0.00041095,30]
[312071073,1705596648535,-2910.71,0.00041095,30]
[312071075,1705596648545,-500.282082,0.00041095,14]
[312071076,1705596648556,-500.0,0.00041095,30]
[312071078,1705596648570,-500.0,0.00041095,30]
[312071080,1705596648579,-363.68438748,0.00041095,30]
[312071082,1705596648589,-437.56994933,0.00041095,30]
[312071084,1705596648603,-500.0,0.00041095,30]
[312071086,1705596648614,-500.0,0.00041095,30]
[312071092,1705596648680,-500.0,0.00041095,30]
[312071094,1705596648690,-6806.65,0.00041095,30]
[312071095,1705596648701,-537.79368713,0.00041095,30]
[312071097,1705596648711,-500.0,0.00041095,30]
[312071099,1705596648721,-500.0,0.00041095,30]
[312071101,1705596648731,-500.0,0.00041095,30]
[312071103,1705596648741,-500.0,0.00041095,30]
[312071105,1705596648752,-502.61124632,0.00041095,30]
[312071107,1705596648763,-500.0,0.00041095,30]
[312071109,1705596648776,-500.0,0.00041095,30]
[312071111,1705596648786,-500.0,0.00041095,30]
[312071112,1705596648796,-500.0,0.00041095,30]
[312071114,1705596648807,-340.05528394,0.00041095,30]
[312071116,1705596648818,-500.0,0.00041095,30]
[312071118,1705596648828,-500.0,0.00041095,30]
[312071120,1705596648838,-504.89075612,0.00041095,30]
[312071122,1705596648848,-500.0,0.00041095,30]
[312071123,1705596648857,-500.37519459,0.00041095,30]
[312071125,1705596648866,-502.26717472,0.00041095,30]
[312071127,1705596648876,-951.91,0.00041095,30]
[312071129,1705596648886,-500.0,0.00041095,30]
[312071131,1705596648895,-500.0,0.00041095,30]
[312071133,1705596648910,-1089.79,0.00041095,30]
[312071135,1705596648919,-640.45045007,0.00041095,30]
[312071137,1705596648929,-500.0,0.00041095,30]
[312071138,1705596648938,-1482.01,0.00041095,30]
[312071140,1705596648948,-500.0,0.00041095,30]
[312071142,1705596648957,-500.0,0.00041095,30]
[312071144,1705596648967,-500.0,0.00041095,30]
[312071146,1705596648976,-500.0,0.00041095,30]
[312071148,1705596648985,-500.0,0.00041095,30]
[312071150,1705596648993,-500.0,0.00041095,30]
[312071151,1705596649003,-522.43826179,0.00041095,30]
[312071153,1705596649012,-500.0,0.00041095,30]
[312071155,1705596649021,-500.0,0.00041095,30]
[312071157,1705596649031,-500.0,0.00041095,30]
[312071159,1705596649041,-502.10615641,0.00041095,30]
[312071161,1705596649051,-500.0,0.00041095,30]
[312071162,1705596649060,-500.0,0.00041095,30]
[312071164,1705596649070,-500.0,0.00041095,30]
[312071166,1705596649080,-531.57493587,0.00041095,30]
[312071168,1705596649090,-376.5362016,0.00041095,30]
[312071169,1705596649099,-500.0,0.00041095,30]
[312071170,1705596649108,-6786.78,0.00041095,30]
[312071171,1705596649118,-758.71,0.00041095,30]
[312071172,1705596649127,-500.0,0.00041095,30]
[312071173,1705596649136,-4984.03,0.00041095,30]
[312071174,1705596649145,-500.0,0.00041095,30]
[312071175,1705596649158,-500.0,0.00041095,30]
[312071176,1705596649167,-500.0,0.00041095,30]
[312071177,1705596649177,-500.0,0.00041095,30]
[312071178,1705596649187,-511.48491375,0.00041095,30]
[312071179,1705596649197,-502.1530719,0.00041095,30]
[312071180,1705596649206,-500.0,0.00041095,30]
[312071181,1705596649216,-5922.96,0.00041095,30]
[312071182,1705596649226,-500.0,0.00041095,30]
[312071183,1705596649235,-500.0,0.00041095,30]
[312071184,1705596649245,-500.0,0.00041095,30]
[312071185,1705596649254,-500.0,0.00041095,20]
[312071186,1705596649263,-500.37228514,0.00041095,30]
[312071187,1705596649273,-500.53372034,0.00041095,30]
[312071188,1705596649283,-14212.01,0.00041095,30]
[312071189,1705596649293,-500.0,0.00041095,30]
[312071190,1705596649303,-500.0,0.00041095,30]
[312071191,1705596649313,-1117.33,0.00041095,30]
[312071192,1705596649323,-787.22,0.00041095,30]
[312071193,1705596649332,-500.0,0.00041095,30]
[312071194,1705596649342,-500.0,0.00041095,30]
[312071195,1705596649350,-500.0,0.00041095,5]
[312071196,1705596649359,-500.53736476,0.00041095,30]
[312071197,1705596649369,-1927.9,0.00041095,30]
[312071198,1705596649378,-500.0,0.00041095,30]
[312071199,1705596649387,-1236.92,0.00041095,30]
[312071200,1705596649403,-500.0,0.00041095,30]
[312071201,1705596649412,-500.0,0.00041095,30]
[312071202,1705596649421,-500.0,0.00041095,30]
[312071203,1705596649430,-500.0,0.00041095,30]
[312071204,1705596649440,-500.0,0.00041095,30]
[312071205,1705596649449,-500.0,0.00041095,30]
[312071206,1705596649458,-1002.65681219,0.00041095,2]
[312071207,1705596649468,-374.27691535,0.00041095,30]
[312071208,1705596649477,-500.0,0.00041095,30]
[312071209,1705596649486,-500.0,0.00041095,30]
[312071210,1705596649495,-500.0,0.00041095,30]
[312071211,1705596649504,-500.0,0.00041095,30]
[312071212,1705596649515,-500.0,0.00041095,30]
[312071213,1705596649524,-7792.73782502,0.00041095,14]
[312071214,1705596649533,-500.0,0.00041095,30]
[312071215,1705596649592,-595.42,0.00041095,30]
[312071216,1705596649603,-500.0,0.00041095,30]
[312071217,1705596649613,-500.0,0.00041095,30]
[312071218,1705596649623,-531.62745803,0.00041095,30]
[312071219,1705596649634,-500.0,0.00041095,30]
[312071220,1705596649643,-500.0,0.00041095,30]
[312071221,1705596649654,-503.91176683,0.00041095,30]
[312071222,1705596649663,-500.0,0.00041095,30]
[312071223,1705596649672,-500.0,0.00041095,30]
[312071224,1705596649682,-500.0,0.00041095,30]
[312071225,1705596649692,-451.05876609,0.00041095,30]
[312071226,1705596649705,-500.0,0.00041095,30]
[312071228,1705596649725,-500.0,0.00041095,30]
[312071229,1705596649739,-500.0,0.00041095,30]
[312071231,1705596649749,-500.0,0.00041095,30]
[312071233,1705596649759,-500.0,0.00041095,30]
[312071235,1705596649769,-500.0,0.00041095,30]
[312071237,1705596649779,-503.59818733,0.00041095,30]
[312071239,1705596649790,-500.0,0.00041095,30]
[312071241,1705596649800,-500.0,0.00041095,30]
[312071243,1705596649809,-500.0,0.00041095,30]
[312071245,1705596649819,-500.0,0.00041095,30]
[312071247,1705596649828,-500.0,0.00041095,30]
[312071248,1705596649838,-3038.35689602,0.00041095,14]
[312071251,1705596649847,-500.0,0.00041095,30]
[312071252,1705596649857,-203.1391671,0.00041095,30]
[312071254,1705596649866,-500.0,0.00041095,30]
[312071256,1705596649875,-500.0,0.00041095,30]
[312071258,1705596649885,-2032.26,0.00041095,30]
[312071260,1705596649895,-500.0,0.00041095,30]
[312071262,1705596649907,-500.0,0.00041095,30]
[312071264,1705596649917,-965.48,0.00041095,30]
[312071266,1705596649927,-500.0,0.00041095,30]
[312071268,1705596649937,-704.01,0.00041095,14]
[312071270,1705596649947,-500.0,0.00041095,30]
[312071272,1705596649956,-500.0,0.00041095,30]
[312071274,1705596649965,-500.0,0.00041095,30]
[312071276,1705596649974,-500.0,0.00041095,30]
[312071278,1705596649984,-500.0,0.00041095,30]
[312071280,1705596649994,-500.0,0.00041095,30]
[312071283,1705596650009,-514.21403191,0.00041095,30]
[312071286,1705596650030,-332.02005209,0.00041095,30]
[312071289,1705596650047,-500.0,0.00041095,30]
[312071292,1705596650067,-866.39,0.00041095,30]
[312071295,1705596650084,-500.0,0.00041095,30]
[312071298,1705596650104,-1608.51,0.00041095,30]
[312071301,1705596650123,-500.0,0.00041095,30]
[312071304,1705596650140,-500.0,0.00041095,30]
[312071307,1705596650162,-2533.93,0.00041095,30]
[312071310,1705596650180,-500.0,0.00041095,30]
[312071313,1705596650202,-500.60528133,0.00041095,30]
[312071316,1705596650220,-639.574732,0.00041095,30]
[312071318,1705596650233,-504.62481488,0.00041095,30]
[312071321,1705596650251,-500.0,0.00041095,30]
[312071324,1705596650268,-300.0,0.00041095,30]
[312071325,1705596650282,-392.35720764,0.00041095,30]
[312071326,1705596650297,-350.00035,0.00041095,30]
[312071327,1705596650313,-333.94524298,0.00041095,30]
[312071328,1705596650328,-500.0,0.00041095,30]
[312071329,1705596650343,-500.0,0.00041095,30]
[312071330,1705596650356,-500.0,0.00041095,30]
[312071331,1705596650372,-3103.58,0.00041095,30]
[312071332,1705596650388,-577.25,0.00041095,30]
[312071334,1705596650405,-3194.51,0.00041095,30]
[312071336,1705596650419,-500.0,0.00041095,30]
[312071338,1705596650434,-500.0,0.00041095,30]
[312071340,1705596650450,-500.0,0.00041095,30]
[312071342,1705596650465,-500.0,0.00041095,30]
[312071345,1705596650480,-500.0,0.00041095,30]
[312071347,1705596650496,-500.0,0.00041095,30]
[312071350,1705596650514,-500.0,0.00041095,30]
[312071352,1705596650530,-500.0,0.00041095,30]
[312071354,1705596650545,-500.0,0.00041095,30]
[312071357,1705596650562,-500.0,0.00041095,30]
[312071359,1705596650575,-500.0,0.00041095,30]
[312071361,1705596650585,-592.82,0.00041095,30]
[312071363,1705596650597,-500.0,0.00041095,30]
[312071365,1705596650609,-539.46195123,0.00041095,30]
[312071367,1705596650620,-500.0,0.00041095,30]
[312071369,1705596650632,-500.0,0.00041095,30]
[312071380,1705596650727,-500.0,0.00041095,30]
[312071382,1705596650779,-500.0,0.00041095,30]
[312071384,1705596650790,-199.02165548,0.00041095,30]
[312071386,1705596650801,-500.0,0.00041095,30]
[312071388,1705596650811,-500.0,0.00041095,2]
[312071390,1705596650821,-500.0,0.00041095,30]
[312071392,1705596650831,-151.0,0.00041095,2]
[312071393,1705596650841,-151.0,0.00041095,2]
[312071394,1705596650851,-151.0,0.00041095,2]
[312071396,1705596650861,-151.0,0.00041095,2]
[312071397,1705596650871,-151.0,0.00041095,2]
[312071399,1705596650881,-151.0,0.00041095,2]
[312071401,1705596650891,-151.0,0.00041095,2]
[312071402,1705596650901,-151.0,0.00041095,2]
[312071404,1705596650915,-3672.248617,0.00041095,2]
[312071406,1705596650925,-3672.248617,0.00041095,2]
[312071407,1705596650936,-218.821974,0.00041095,2]
[312071408,1705596650946,-151.0,0.00041095,2]
[312071409,1705596650956,-35331.163784,0.00041096,15]
[312071410,1705596650966,-1220.1106198,0.00041096,7]
[312071411,1705596650976,-176.383568,0.00041096,2]
[312071412,1705596650986,-150.30083188,0.000411,14]
[312071413,1705596650996,-150.30083188,0.000411,14]
[312071414,1705596651007,-150.30083188,0.000411,14]
[312071415,1705596651018,-150.3,0.000411,14]
[312071416,1705596651028,-150.30083188,0.000411,14]
[312071417,1705596651039,-150.30083188,0.000411,14]
[312071418,1705596651048,-150.30083188,0.000411,14]
[312071419,1705596651057,-150.30083188,0.000411,14]
[312071420,1705596651067,-150.30083188,0.000411,14]
[312071421,1705596651076,-150.30083188,0.000411,14]
[312071422,1705596651086,-150.30083188,0.000411,14]
[312071424,1705596651095,-150.30083188,0.000411,14]
[312071425,1705596651104,-150.30083188,0.000411,14]
[312071427,1705596651113,-150.30083188,0.000411,14]
[312071429,1705596651123,-150.30083188,0.000411,14]
[312071431,1705596651132,-150.30083188,0.000411,14]
[312071433,1705596651142,-500.0,0.000411,3]
[312071435,1705596651153,-2000.0,0.000411,35]
[312071437,1705596651164,-419.35046969,0.000411,14]
[312071438,1705596651174,-419.35046969,0.000411,14]
[312071440,1705596651185,-419.35046969,0.000411,14]
[312071442,1705596651195,-419.35046969,0.000411,14]
[312071444,1705596651206,-419.35046969,0.000411,14]
[312071446,1705596651216,-419.35046969,0.000411,14]
[312071447,1705596651226,-419.35046969,0.000411,14]
[312071449,1705596651237,-419.35046969,0.000411,14]
[312071451,1705596651246,-419.35046969,0.000411,14]
[312071452,1705596651256,-419.35046969,0.000411,14]
[312071453,1705596651266,-419.35046969,0.000411,14]
[312071454,1705596651276,-419.35046969,0.000411,14]
[312071455,1705596651286,-419.35046969,0.000411,14]
[312071456,1705596651295,-419.35046969,0.000411,14]
[312071457,1705596651305,-419.35046969,0.000411,14]
[312071459,1705596651315,-419.35046969,0.000411,14]
[312071461,1705596651326,-419.35046969,0.000411,14]
[312071463,1705596651336,-419.35046969,0.000411,14]
[312071465,1705596651345,-419.35046969,0.000411,14]
[312071467,1705596651355,-419.35,0.000411,14]
[312071469,1705596651364,-1677.40187877,0.000411,14]
[312071471,1705596651374,-1677.40187877,0.000411,14]
[312071473,1705596651383,-1677.40187877,0.000411,14]
[312071475,1705596651393,-1677.40187877,0.000411,14]
[312071477,1705596651405,-1677.40187877,0.000411,14]
[312071479,1705596651416,-1677.40187877,0.000411,14]
[312071481,1705596651426,-1677.40187877,0.000411,14]
[312071483,1705596651435,-1677.40187877,0.000411,14]
[312071485,1705596651445,-1677.40187877,0.000411,14]
[312071487,1705596651455,-1677.40187877,0.000411,14]
[312071489,1705596651464,-1677.40187877,0.000411,14]
[312071490,1705596651473,-1677.40187877,0.000411,14]
[312071493,1705596651484,-1677.40187877,0.000411,14]
[312071494,1705596651494,-1677.40187877,0.000411,14]
[312071496,1705596651503,-1677.40187877,0.000411,14]
[312071498,1705596651518,-181.66666667,0.000411,14]
[312071500,1705596651528,-181.66666667,0.000411,14]
[312071502,1705596651538,-2000.0,0.0004111,35]
[312071504,1705596651548,-2000.0,0.0004112,35]
[312071506,1705596651559,-2000.0,0.0004113,35]
[312071508,1705596651570,-2000.0,0.0004114,35]
[312071510,1705596651580,-2000.0,0.0004115,35]
[312071512,1705596651590,-2000.0,0.0004116,35]
[312071514,1705596651601,-11226.75463028,0.00041169,12]
[312071516,1705596651612,-2603.482353,0.0004117,35]
[312071518,1705596651622,-1500.0,0.000412,3]
[312071520,1705596651632,-1677.40187877,0.00041246,14]
[312071522,1705596651642,-150.93962415,0.00041345,2]
[312071524,1705596651654,-150.30083188,0.00041354,14]
[312071526,1705596651664,-501.59297454,0.00041369,30]
[312071528,1705596651675,-500.0,0.00041369,30]
[312071530,1705596651684,-520.44002351,0.00041369,30]
[312071531,1705596651695,-500.0,0.00041369,30]
[312071532,1705596651706,-500.0,0.00041369,30]
[312071533,1705596651716,-500.0,0.00041369,7]
[312071534,1705596651726,-500.0,0.00041369,30]
[312071535,1705596651736,-500.0,0.00041369,30]
[312071537,1705596651747,-500.0,0.00041369,30]
[312071539,1705596651757,-500.0,0.00041369,30]
[312071540,1705596651768,-500.0,0.00041369,30]
[312071541,1705596651777,-502.17638067,0.00041369,30]
[312071542,1705596651788,-200.0,0.00041369,30]
[312071543,1705596651798,-631.7872854,0.00041369,30]
[312071544,1705596651808,-500.0,0.00041369,30]
[312071545,1705596651817,-500.0,0.00041369,30]
[312071546,1705596651827,-500.0,0.00041369,30]
[312071547,1705596651836,-513.00699757,0.00041369,30]
[312071548,1705596651846,-500.0,0.00041369,30]
[312071549,1705596651856,-500.0,0.00041369,30]
[312071550,1705596651866,-502.20252992,0.00041369,30]
[312071551,1705596651876,-500.0,0.00041369,30]
[312071552,1705596651887,-500.0,0.00041369,30]
[312071553,1705596651897,-510.76894001,0.00041369,30]
[312071554,1705596651910,-500.0,0.00041369,30]
[312071555,1705596651919,-500.0,0.00041369,30]
[312071556,1705596651929,-500.0,0.00041369,30]
[312071557,1705596651938,-500.0,0.00041369,30]
[312071558,1705596651948,-150.0,0.00041369,30]
[312071559,1705596651958,-500.97903448,0.00041369,30]
[312071560,1705596651968,-599.03146019,0.00041369,30]
[312071561,1705596651977,-500.0,0.00041369,30]
[312071562,1705596651986,-500.0,0.00041369,30]
[312071563,1705596651997,-221.30751281,0.00041369,30]
[312071564,1705596652006,-512.68900312,0.00041369,30]
[312071565,1705596652016,-500.0,0.00041369,30]
[312071566,1705596652026,-501.36601449,0.00041369,30]
[312071567,1705596652036,-500.0,0.00041369,30]
[312071568,1705596652046,-504.2170462,0.00041369,30]
[312071569,1705596652056,-500.0,0.00041369,30]
[312071570,1705596652066,-517.45,0.00041369,30]
[312071571,1705596652076,-500.0,0.00041369,30]
[312071572,1705596652085,-500.0,0.00041369,30]
[312071573,1705596652095,-500.0,0.00041369,30]
[312071574,1705596652105,-500.0,0.00041369,30]
[312071575,1705596652115,-500.0,0.00041369,30]
[312071576,1705596652124,-500.0,0.00041369,30]
[312071577,1705596652134,-500.0,0.00041369,30]
[312071578,1705596652143,-500.0,0.00041369,7]
[312071579,1705596652155,-1728.07,0.00041369,30]
[312071580,1705596652164,-500.0,0.00041369,30]
[312071581,1705596652174,-500.0,0.00041369,30]
[312071582,1705596652183,-500.0,0.00041369,30]
[312071583,1705596652192,-500.0,0.00041369,30]
[312071584,1705596652202,-500.0,0.00041369,30]
[312071585,1705596652212,-500.0,0.00041369,30]
[312071586,1705596652222,-500.59002617,0.00041369,2]
[312071587,1705596652232,-500.0,0.00041369,30]
[312071588,1705596652241,-500.0,0.00041369,30]
[312071589,1705596652251,-500.0,0.00041369,30]
[312071590,1705596652260,-519.56,0.00041369,30]
[312071591,1705596652270,-510.96602421,0.00041369,30]
[312071592,1705596652279,-1000.0,0.00041369,2]
[312071593,1705596652288,-500.0,0.00041369,30]
[312071594,1705596652297,-643.15,0.00041369,30]
[312071595,1705596652306,-500.0,0.00041369,30]
[312071596,1705596652316,-350.0,0.00041369,30]
[312071597,1705596652325,-500.0,0.00041369,30]
[312071598,1705596652334,-500.74137746,0.00041369,30]
[312071599,1705596652343,-846.06,0.00041369,30]
[312071600,1705596652353,-500.0,0.00041369,30]
[312071601,1705596652362,-500.0,0.00041369,30]
[312071602,1705596652372,-500.0,0.00041369,30]
[312071603,1705596652381,-500.0,0.00041369,30]
[312071604,1705596652390,-390.58929485,0.00041369,30]
[312071605,1705596652400,-500.0,0.00041369,30]
[312071606,1705596652412,-500.0,0.00041369,30]
[312071607,1705596652422,-500.0,0.00041369,30]
[312071608,1705596652432,-501.611874,0.00041369,30]
[312071609,1705596652442,-500.0,0.00041369,30]
[312071610,1705596652451,-500.0,0.00041369,2]
[312071611,1705596652527,-430.98156131,0.00041369,30]
[312071612,1705596652537,-500.0,0.00041369,30]
[312071613,1705596652547,-500.0,0.00041369,30]
[312071614,1705596652559,-1000.0,0.00041369,2]
[312071615,1705596652568,-500.0,0.00041369,30]
[312071616,1705596652577,-500.0,0.00041369,30]
[312071617,1705596652586,-500.0,0.00041369,30]
[312071618,1705596652595,-500.0,0.00041369,30]
[312071619,1705596652607,-501.14796052,0.00041369,30]
[312071620,1705596652617,-576.08,0.00041369,30]
[312071621,1705596652627,-508.23651384,0.00041369,30]
[312071622,1705596652636,-320.66214858,0.00041369,30]
[312071623,1705596652646,-373.5142545,0.00041369,30]
[312071624,1705596652659,-500.0,0.00041369,30]
[312071625,1705596652668,-500.0,0.00041369,30]
[312071626,1705596652677,-500.0,0.00041369,30]
[312071627,1705596652689,-220.29516011,0.00041369,2]
[312071628,1705596652699,-499.88527745,0.00041369,30]
[312071629,1705596652708,-500.0,0.00041369,30]
[312071630,1705596652718,-539.16,0.00041369,30]
[312071631,1705596652727,-500.0,0.00041369,30]
[312071632,1705596652737,-501.99862729,0.00041369,30]
[312071633,1705596652746,-500.0,0.00041369,30]
[312071634,1705596652756,-500.0,0.00041369,30]
[312071635,1705596652766,-500.0,0.00041369,7]
[312071636,1705596652775,-500.0,0.00041369,30]
[312071637,1705596652785,-536.1,0.00041369,30]
[312071638,1705596652795,-500.0,0.00041369,30]
[312071639,1705596652804,-368.2554672,0.00041369,30]
[312071640,1705596652814,-500.77064087,0.00041369,30]
[312071641,1705596652823,-500.0,0.00041369,30]
[312071642,1705596652833,-500.0,0.00041369,30]
[312071643,1705596652842,-500.0,0.00041369,30]
[312071644,1705596652851,-500.0,0.00041369,30]
[312071645,1705596652861,-503.4258123,0.00041369,30]
[312071646,1705596652872,-500.0,0.00041369,30]
[312071647,1705596652882,-500.0,0.00041369,30]
[312071648,1705596652892,-500.0,0.00041369,30]
[312071649,1705596652902,-10028.89721791,0.00041369,10]
[312071650,1705596652914,-1482.41,0.00041369,30]
[312071651,1705596652923,-500.0,0.00041369,30]
[312071652,1705596652932,-500.0,0.00041369,30]
[312071653,1705596652942,-504.10090729,0.00041369,30]
[312071654,1705596652952,-500.0,0.00041369,30]
[312071655,1705596652962,-500.0,0.00041369,30]
[312071656,1705596652972,-500.0,0.00041369,30]
[312071657,1705596652982,-500.55436778,0.00041369,30]
[312071658,1705596652992,-500.0,0.00041369,30]
[312071659,1705596653002,-500.0,0.00041369,30]
[312071660,1705596653012,-500.0,0.00041369,30]
[312071661,1705596653023,-1000.0,0.00041369,5]
[312071662,1705596653032,-507.81839334,0.00041369,30]
[312071663,1705596653042,-559.6452671,0.00041369,30]
[312071664,1705596653052,-579.55,0.00041369,30]
[312071665,1705596653062,-536.72114219,0.00041369,30]
[312071666,1705596653071,-500.0,0.00041369,30]
[312071667,1705596653081,-500.0,0.00041369,30]
[312071668,1705596653097,-500.0,0.00041369,30]